fUSD/lending_fUSD_20250916
["ID","MTS","AMOUNT","RATE_DAILY","PERIOD"]
[385836756,1758058278505,-483.06,0.00034246,6]
[385836757,1758058278515,-700.0,0.00034257,7]
[385836758,1758058278525,-700.0,0.00034272,7]
[385836759,1758058278534,-3581.74,0.000343,14]
[385836760,1758058278544,-400.0,0.00034307,6]
[385836761,1758058278554,-400.0,0.00034307,6]
[385836762,1758058278563,-439.88,0.00034307,6]
[385836763,1758058278572,-400.0,0.00034307,6]
[385836764,1758058278581,-400.0,0.00034307,6]
[385836765,1758058278591,-595.63,0.00034307,6]
[385836766,1758058278601,-400.0,0.00034307,6]
[385836767,1758058278611,-461.84,0.00034307,6]
[385836768,1758058278621,-924.18,0.00034307,6]
[385836769,1758058278631,-400.0,0.00034307,6]
[385836770,1758058278641,-400.0,0.00034307,6]
[385836771,1758058278650,-400.0,0.00034307,6]
[385836772,1758058278660,-779.04,0.00034307,6]
[385836773,1758058278669,-11748.77,0.00034307,6]
[385836774,1758058278679,-400.0,0.00034307,6]
[385836775,1758058278688,-846.77,0.00034307,6]
[385836776,1758058278698,-816.88,0.00034307,6]
[385836777,1758058278708,-417.79,0.00034307,6]
[385836778,1758058278719,-617.06,0.00034307,6]
[385836779,1758058278728,-956.08,0.00034307,6]
[385836780,1758058278738,-1000.0,0.00034396,7]
[385836781,1758058278748,-500.0,0.00034427,7]
[385836782,1758058278757,-317.51,0.00034453,60]
[385836783,1758058278767,-800.0,0.00034477,13]
[385836784,1758058278777,-800.0,0.00034477,13]
[385836785,1758058278787,-800.0,0.00034477,13]
[385836786,1758058278797,-800.0,0.00034477,13]
[385836787,1758058278811,-800.0,0.00034477,13]
[385836788,1758058278821,-800.0,0.00034477,13]
[385836789,1758058278830,-800.0,0.00034477,13]
[385836790,1758058278841,-800.0,0.00034477,13]
[385836791,1758058278850,-800.0,0.00034477,13]
[385836792,1758058278860,-800.0,0.00034477,13]
[385836793,1758058278869,-800.0,0.00034477,13]
[385836794,1758058278882,-800.0,0.00034477,13]
[385836795,1758058278892,-800.0,0.00034477,13]
[385836796,1758058278902,-800.0,0.00034477,13]
[385836797,1758058278911,-800.0,0.00034477,13]
[385836798,1758058278922,-800.0,0.00034477,13]
[385836799,1758058278931,-800.0,0.00034477,13]
[385836800,1758058278940,-800.0,0.00034477,13]
[385836801,1758058278950,-800.0,0.00034477,13]
[385836802,1758058278961,-800.0,0.00034477,13]
[385836803,1758058278971,-800.0,0.00034477,13]
[385836804,1758058278981,-800.0,0.00034477,13]
[385836805,1758058278991,-800.0,0.00034477,13]
[385836806,1758058279000,-206.0,0.00034477,13]
[385836807,1758058279010,-200.0,0.00034477,2]
[385836808,1758058279019,-200.0,0.00034477,2]
[385836809,1758058279029,-200.0,0.00034477,2]
[385836810,1758058279039,-200.0,0.00034477,2]
[385836811,1758058279049,-200.0,0.00034477,2]
[385836812,1758058279058,-200.0,0.00034477,2]
[385836813,1758058279068,-200.0,0.00034477,2]
[385836814,1758058279078,-200.0,0.00034477,2]
[385836815,1758058279087,-200.0,0.00034477,2]
[385836816,1758058279097,-200.0,0.00034477,2]
[385836817,1758058279106,-200.0,0.00034477,2]
[385836818,1758058279116,-200.0,0.00034477,2]
[385836819,1758058279126,-200.0,0.00034477,2]
[385836820,1758058279135,-200.0,0.00034477,2]
[385836821,1758058279144,-200.0,0.00034477,2]
[385836822,1758058279154,-200.0,0.00034477,2]
[385836823,1758058279163,-200.0,0.00034477,2]
[385836824,1758058279173,-200.0,0.00034477,2]
[385836825,1758058279182,-200.0,0.00034477,2]
[385836826,1758058279191,-200.0,0.00034477,2]
[385836827,1758058279201,-200.0,0.00034477,2]
[385836828,1758058279210,-200.0,0.00034477,2]
[385836829,1758058279220,-200.0,0.00034477,2]
[385836830,1758058279230,-200.0,0.00034477,2]
[385836831,1758058279239,-200.0,0.00034477,2]
[385836832,1758058279249,-200.0,0.00034477,2]
[385836833,1758058279258,-200.0,0.00034477,2]
[385836834,1758058279269,-474.90921343,0.00034481,6]
[385836835,1758058279279,-400.0,0.00034481,6]
[385836836,1758058279289,-1275.83,0.00034481,6]
[385836837,1758058279298,-408.95,0.00034481,6]
[385836838,1758058279308,-400.0,0.00034481,6]
[385836839,1758058279318,-467.76,0.00034481,6]
[385836840,1758058279327,-400.0,0.00034481,6]
[385836841,1758058279337,-833.72,0.00034481,6]
[385836842,1758058279347,-400.0,0.00034481,6]
[385836843,1758058279357,-346.05710734,0.00034481,6]
[385836844,1758058279366,-529.33,0.00034481,6]
[385836845,1758058279375,-935.51,0.00034481,6]
[385836846,1758058279385,-2071.17759145,0.000345,14]
[385836847,1758058279396,-500.0,0.00034506,2]
[385836848,1758058279484,-500.0,0.00034506,2]
[385836849,1758058279494,-500.0,0.00034506,2]
[385836850,1758058279503,-164.04644488,0.00034506,2]
[385836851,1758058279513,-150.0,0.00034506,2]
[385836852,1758058279522,-500.0,0.00034506,2]
[385836853,1758058279532,-150.0,0.00034506,2]
[385836854,1758058279543,-150.0,0.00034506,2]
[385836855,1758058279552,-885.22,0.00034518,6]
[385836856,1758058279561,-882.33,0.00034518,6]
[385836857,1758058279570,-400.0,0.00034518,6]
[385836858,1758058279580,-583.88,0.00034518,6]
[385836859,1758058279590,-400.0,0.00034519,6]
[385836860,1758058279602,-400.0,0.00034519,6]
[385836861,1758058279611,-192.01925343,0.00034519,6]
[385836862,1758058279620,-400.0,0.00034519,6]
[385836863,1758058279629,-1030.84,0.00034519,6]
[385836864,1758058279638,-400.0,0.00034519,6]
[385836865,1758058279648,-1390.25,0.00034519,6]
[385836866,1758058279657,-893.45,0.00034519,6]
[385836867,1758058279666,-846.78,0.00034519,6]
[385836868,1758058279675,-400.0,0.00034519,6]
[385836869,1758058279684,-463.17,0.00034519,6]
[385836870,1758058279693,-400.0,0.00034519,120]
[385836871,1758058279703,-400.0,0.00034519,6]
[385836872,1758058279712,-400.0,0.00034519,6]
[385836873,1758058279722,-400.0,0.00034519,6]
[385836874,1758058279731,-405.15,0.00034519,6]
[385836875,1758058279744,-544.6,0.00034519,6]
[385836876,1758058279754,-579.99,0.00034519,6]
[385836877,1758058279764,-400.0,0.00034519,6]
[385836878,1758058279773,-1324.78,0.00034519,6]
[385836879,1758058279782,-400.0,0.00034519,6]
[385836880,1758058279791,-1741.21,0.00034519,6]
[385836881,1758058279800,-400.0,0.00034519,6]
[385836882,1758058279809,-400.0,0.00034519,6]
[385836883,1758058279818,-400.0,0.00034519,6]
[385836884,1758058279827,-709.37,0.00034519,6]
[385836885,1758058279836,-1543.15,0.00034519,6]
[385836886,1758058279845,-400.0,0.00034519,6]
[385836887,1758058279854,-559.75,0.00034519,6]
[385836888,1758058279862,-400.0,0.00034519,6]
[385836889,1758058279871,-400.0,0.00034519,6]
[385836890,1758058279883,-400.0,0.00034519,6]
[385836891,1758058279892,-2637.68,0.00034519,6]
[385836892,1758058279900,-635.22,0.00034519,6]
[385836893,1758058279910,-2060.24,0.00034519,6]
[385836894,1758058279919,-440.36,0.00034519,6]
[385836895,1758058279928,-400.0,0.00034519,6]
[385836896,1758058279937,-1367.84,0.00034519,6]
[385836897,1758058279946,-427.12946303,0.00034519,6]
[385836898,1758058279955,-400.0,0.00034519,6]
[385836899,1758058279967,-1696.13,0.00034519,6]
[385836900,1758058279977,-400.0,0.00034519,6]
[385836901,1758058279986,-537.85,0.00034519,6]
[385836902,1758058279995,-428.76,0.00034519,6]
[385836903,1758058280004,-806.85,0.00034519,6]
[385836904,1758058280014,-549.91,0.00034519,6]
[385836905,1758058280023,-2321.08,0.00034519,6]
[385836906,1758058280032,-400.0,0.00034519,6]
[385836907,1758058280041,-777.31,0.00034519,6]
[385836908,1758058280049,-400.0,0.00034519,6]
[385836909,1758058280058,-614.12,0.00034519,6]
[385836910,1758058280067,-400.0,0.00034519,6]
[385836911,1758058280076,-400.0,0.00034519,6]
[385836912,1758058280085,-400.0,0.00034519,6]
[385836913,1758058280094,-400.0,0.00034519,6]
[385836914,1758058280103,-472.73,0.00034519,6]
[385836915,1758058280112,-400.0,0.00034519,6]
[385836916,1758058280121,-400.0,0.00034519,6]
[385836917,1758058280131,-1041.29,0.00034519,6]
[385836918,1758058280140,-400.0,0.00034519,6]
[385836919,1758058280149,-643.91,0.00034519,6]
[385836920,1758058280158,-730.67,0.00034519,6]
[385836921,1758058280167,-2927.23,0.00034519,6]
[385836922,1758058280177,-217.82319308,0.0003452,2]
[385836923,1758058280186,-461.14,0.0003452,6]
[385836924,1758058280195,-400.0,0.0003452,6]
[385836925,1758058280204,-400.0,0.0003452,6]
[385836926,1758058280215,-530.21,0.0003452,6]
[385836927,1758058280225,-727.34,0.0003452,6]
[385836928,1758058280234,-531.6,0.0003452,6]
[385836929,1758058280244,-2312.57,0.0003452,6]
[385836930,1758058280253,-586.9,0.0003452,6]
[385836931,1758058280264,-478.77334497,0.0003452,6]
[385836932,1758058280273,-627.93,0.0003452,6]
[385836933,1758058280285,-753.33,0.0003452,6]
[385836934,1758058280297,-400.0,0.0003452,6]
[385836935,1758058280306,-589.16,0.0003452,6]
[385836936,1758058280316,-609.41,0.0003452,6]
[385836937,1758058280326,-510.36,0.0003452,6]
[385836938,1758058280335,-684.2,0.0003452,6]
[385836939,1758058280344,-400.0,0.0003452,6]
[385836940,1758058280354,-511.86,0.0003452,6]
[385836941,1758058280363,-2593.28,0.0003452,6]
[385836942,1758058280372,-764.41,0.0003452,6]
[385836943,1758058280381,-409.5,0.0003452,6]
[385836944,1758058280390,-594.69,0.0003452,6]
[385836945,1758058280399,-400.0,0.0003452,6]
[385836946,1758058280410,-563.64,0.0003452,6]
[385836947,1758058280419,-918.03,0.0003452,6]
[385836948,1758058280429,-3040.54,0.0003452,6]
[385836949,1758058280439,-955.33,0.0003452,6]
[385836950,1758058280451,-659.68,0.0003452,6]
[385836951,1758058280460,-594.06,0.0003452,6]
[385836952,1758058280470,-400.0,0.0003452,6]
[385836953,1758058280479,-585.22,0.0003452,6]
[385836954,1758058280488,-483.06,0.0003452,6]
[385836955,1758058280497,-317.51,0.00034553,60]
[385836956,1758058280506,-1000.0,0.00034568,7]
[385836957,1758058280515,-411.8839269,0.00034581,6]
[385836958,1758058280524,-400.0,0.00034581,6]
[385836959,1758058280533,-439.88,0.00034581,6]
[385836960,1758058280543,-174.30193763,0.00034581,6]
[385836961,1758058280552,-400.0,0.00034581,6]
[385836962,1758058280561,-595.63,0.00034581,6]
[385836963,1758058280570,-400.0,0.00034581,6]
[385836964,1758058280579,-461.84,0.00034581,6]
[385836965,1758058280589,-924.18,0.00034581,6]
[385836966,1758058280598,-400.0,0.00034581,6]
[385836967,1758058280607,-400.0,0.00034581,6]
[385836968,1758058280616,-400.0,0.00034581,6]
[385836969,1758058280626,-779.04,0.00034581,6]
[385836970,1758058280635,-11748.77,0.00034581,6]
[385836971,1758058280644,-400.0,0.00034581,6]
[385836972,1758058280653,-846.77,0.00034581,6]
[385836973,1758058280664,-816.88,0.00034581,6]
[385836974,1758058280673,-417.79,0.00034581,6]
[385836975,1758058280682,-617.06,0.00034581,6]
[385836976,1758058280691,-956.08,0.00034581,6]
[385836977,1758058280700,-500.0,0.00034588,7]
[385836978,1758058280709,-1000.0,0.00034601,7]
[385836979,1758058280721,-262.69,0.00034612,30]
[385836980,1758058280731,-317.51,0.00034653,60]
[385836981,1758058280741,-500.0,0.0003466,7]
[385836982,1758058280751,-1012.18286779,0.00034666,2]
[385836983,1758058280761,-500.0,0.00034667,7]
[385836984,1758058280771,-700.0,0.00034674,7]
[385836985,1758058280781,-317.51,0.00034753,60]
[385836986,1758058280791,-400.0,0.00034755,6]
[385836987,1758058280801,-1275.83,0.00034755,6]
[385836988,1758058280810,-408.95,0.00034755,6]
[385836989,1758058280819,-400.0,0.00034755,6]
[385836990,1758058280828,-467.76,0.00034755,6]
[385836991,1758058280838,-400.0,0.00034755,6]
[385836992,1758058280846,-833.72,0.00034755,6]
[385836993,1758058280855,-400.0,0.00034755,6]
[385836994,1758058280864,-529.33,0.00034755,6]
[385836995,1758058280874,-935.51,0.00034755,6]
[385836996,1758058280888,-900.0,0.00034756,7]
[385836997,1758058280899,-600.0,0.00034758,7]
[385836998,1758058280908,-500.0,0.0003478,2]
[385836999,1758058280919,-500.0,0.0003478,2]
[385837000,1758058280928,-500.0,0.0003478,2]
[385837001,1758058280937,-150.0,0.0003478,2]
[385837002,1758058280946,-300.0,0.0003478,2]
[385837003,1758058280955,-150.0,0.0003478,2]
[385837004,1758058280964,-150.0,0.0003478,2]
[385837005,1758058280974,-885.22,0.00034792,6]
[385837006,1758058280983,-882.33,0.00034792,6]
[385837007,1758058280991,-415.42361024,0.00034792,6]
[385837008,1758058281001,-583.88,0.00034792,6]
[385837009,1758058281010,-508.80011994,0.00034793,6]
[385837010,1758058281019,-400.0,0.00034793,6]
[385837011,1758058281028,-400.0,0.00034793,6]
[385837012,1758058281037,-1030.84,0.00034793,6]
[385837013,1758058281047,-400.0,0.00034793,6]
[385837014,1758058281056,-1390.25,0.00034793,6]
[385837015,1758058281065,-893.45,0.00034793,6]
[385837016,1758058281075,-846.78,0.00034793,6]
[385837017,1758058281083,-400.0,0.00034793,6]
[385837018,1758058281093,-463.17,0.00034793,6]
[385837019,1758058281102,-400.0,0.00034793,120]
[385837020,1758058281112,-400.0,0.00034793,6]
[385837021,1758058281122,-400.0,0.00034793,6]
[385837022,1758058281131,-400.0,0.00034793,6]
[385837023,1758058281140,-405.15,0.00034793,6]
[385837024,1758058281149,-544.6,0.00034793,6]
[385837025,1758058281158,-579.99,0.00034793,6]
[385837026,1758058281167,-400.0,0.00034793,6]
[385837027,1758058281176,-1324.78,0.00034793,6]
[385837028,1758058281185,-400.0,0.00034793,6]
[385837029,1758058281195,-1741.21,0.00034793,6]
[385837030,1758058281204,-400.0,0.00034793,6]
[385837031,1758058281213,-400.0,0.00034793,6]
[385837032,1758058281222,-400.0,0.00034793,6]
[385837033,1758058281231,-709.37,0.00034793,6]
[385837034,1758058281240,-1543.15,0.00034793,6]
[385837035,1758058281249,-400.0,0.00034793,6]
[385837036,1758058281258,-559.75,0.00034793,6]
[385837037,1758058281267,-400.0,0.00034793,6]
[385837038,1758058281276,-400.0,0.00034793,6]
[385837039,1758058281285,-2637.68,0.00034793,6]
[385837040,1758058281294,-400.0,0.00034793,6]
[385837041,1758058281302,-635.22,0.00034793,6]
[385837042,1758058281312,-2060.24,0.00034793,6]
[385837043,1758058281320,-440.36,0.00034793,6]
[385837044,1758058281330,-400.0,0.00034793,6]
[385837045,1758058281339,-1367.84,0.00034793,6]
[385837046,1758058281348,-400.0,0.00034793,6]
[385837047,1758058281357,-1696.13,0.00034793,6]
[385837048,1758058281366,-400.0,0.00034793,6]
[385837049,1758058281375,-537.85,0.00034793,6]
[385837050,1758058281384,-428.76,0.00034793,6]
[385837051,1758058281393,-806.85,0.00034793,6]
[385837052,1758058281402,-549.91,0.00034793,6]
[385837053,1758058281410,-2321.08,0.00034793,6]
[385837054,1758058281419,-267.26249803,0.00034793,6]
[385837055,1758058281428,-777.31,0.00034793,6]
[385837056,1758058281436,-400.0,0.00034793,6]
[385837057,1758058281445,-614.12,0.00034793,6]
[385837058,1758058281455,-400.0,0.00034793,6]
[385837059,1758058281464,-400.0,0.00034793,6]
[385837060,1758058281473,-400.0,0.00034793,6]
[385837061,1758058281482,-400.0,0.00034793,6]
[385837062,1758058281491,-472.73,0.00034793,6]
[385837063,1758058281499,-400.0,0.00034793,6]
[385837064,1758058281508,-400.0,0.00034793,6]
[385837065,1758058281517,-1041.29,0.00034793,6]
[385837066,1758058281527,-400.0,0.00034793,6]
[385837067,1758058281535,-643.91,0.00034793,6]
[385837068,1758058281545,-730.67,0.00034793,6]
[385837069,1758058281558,-2927.23,0.00034793,6]
[385837070,1758058281567,-461.14,0.00034794,6]
[385837071,1758058281576,-400.0,0.00034794,6]
[385837072,1758058281585,-400.0,0.00034794,6]
[385837073,1758058281594,-1150.15,0.00034794,120]
[385837074,1758058281604,-530.21,0.00034794,6]
[385837075,1758058281613,-727.34,0.00034794,6]
[385837076,1758058281623,-531.6,0.00034794,6]
[385837077,1758058281632,-2312.57,0.00034794,6]
[385837078,1758058281648,-586.9,0.00034794,6]
[385837079,1758058281661,-627.93,0.00034794,6]
[385837080,1758058281671,-753.33,0.00034794,6]
[385837081,1758058281680,-400.0,0.00034794,6]
[385837082,1758058281689,-589.16,0.00034794,6]
[385837083,1758058281699,-609.41,0.00034794,6]
[385837084,1758058281709,-510.36,0.00034794,6]
[385837085,1758058281724,-684.2,0.00034794,6]
[385837086,1758058281734,-547.7583293,0.00034794,6]
[385837087,1758058281743,-511.86,0.00034794,6]
[385837088,1758058281752,-2593.28,0.00034794,6]
[385837089,1758058281762,-764.41,0.00034794,6]
[385837090,1758058281771,-409.5,0.00034794,6]
[385837091,1758058281780,-594.69,0.00034794,6]
[385837092,1758058281790,-400.0,0.00034794,6]
[385837093,1758058281799,-563.64,0.00034794,6]
[385837094,1758058281808,-918.03,0.00034794,6]
[385837095,1758058281817,-3040.54,0.00034794,6]
[385837096,1758058281826,-955.33,0.00034794,6]
[385837097,1758058281835,-659.68,0.00034794,6]
[385837098,1758058281844,-400.0,0.00034794,6]
[385837099,1758058281854,-594.06,0.00034794,6]
[385837100,1758058281863,-585.22,0.00034794,6]
[385837101,1758058281872,-483.06,0.00034794,6]
[385837102,1758058281888,-600.0,0.00034825,7]
[385837103,1758058281898,-5228.91108625,0.0003485,60]
[385837104,1758058281907,-317.51,0.00034853,60]
[385837105,1758058281917,-380.40799246,0.00034855,6]
[385837106,1758058281926,-439.88,0.00034855,6]
[385837107,1758058281936,-400.0,0.00034855,6]
[385837108,1758058281946,-595.63,0.00034855,6]
[385837109,1758058281955,-400.0,0.00034855,6]
[385837110,1758058281965,-461.84,0.00034855,6]
[385837111,1758058281975,-924.18,0.00034855,6]
[385837112,1758058281987,-400.0,0.00034855,6]
[385837113,1758058281997,-400.0,0.00034855,6]
[385837114,1758058282006,-400.0,0.00034855,6]
[385837115,1758058282015,-779.04,0.00034855,6]
[385837116,1758058282025,-11748.77,0.00034855,6]
[385837117,1758058282035,-400.0,0.00034855,6]
[385837118,1758058282045,-846.77,0.00034855,6]
[385837119,1758058282056,-816.88,0.00034855,6]
[385837120,1758058282066,-417.79,0.00034855,6]
[385837121,1758058282075,-617.06,0.00034855,6]
[385837122,1758058282086,-956.08,0.00034855,6]
[385837123,1758058282095,-700.0,0.00034936,7]
[385837124,1758058282105,-500.0,0.00034951,7]
[385837125,1758058282115,-317.51,0.00034953,60]
[385837126,1758058282125,-1000.0,0.00034994,7]
[385837127,1758058282134,-1000.0,0.00034995,7]
[385837128,1758058282144,-2000.0,0.00035,2]
[385837129,1758058282154,-2000.0,0.00035,2]
[385837130,1758058282164,-2000.0,0.00035,2]
[385837131,1758058282174,-2000.0,0.00035,2]
[385837132,1758058282183,-2000.0,0.00035,2]
[385837133,1758058282193,-642.4327,0.00035,2]
[385837134,1758058282202,-5739.95492833,0.00035,2]
[385837135,1758058282212,-3581.74,0.00035,14]
[385837136,1758058282222,-1000.0,0.00035023,7]
[385837137,1758058282232,-400.0,0.00035029,6]
[385837138,1758058282241,-1275.83,0.00035029,6]
[385837139,1758058282251,-408.95,0.00035029,6]
[385837140,1758058282261,-400.0,0.00035029,6]
[385837141,1758058282271,-467.76,0.00035029,6]
[385837142,1758058282281,-400.0,0.00035029,6]
[385837143,1758058282290,-833.72,0.00035029,6]
[385837144,1758058282299,-400.0,0.00035029,6]
[385837145,1758058282309,-529.33,0.00035029,6]
[385837146,1758058282318,-935.51,0.00035029,6]
[385837147,1758058282328,-1100.0,0.0003503,7]
[385837148,1758058282338,-150.0,0.00035041,7]
[385837149,1758058282349,-150.0,0.00035041,7]
[385837150,1758058282360,-317.51,0.00035053,60]
[385837151,1758058282372,-500.0,0.00035054,2]
[385837152,1758058282382,-500.0,0.00035054,2]
[385837153,1758058282394,-258.63166681,0.00035054,2]
[385837154,1758058282405,-260.89421384,0.00035054,2]
[385837155,1758058282415,-862.11393977,0.00035054,7]
[385837156,1758058282426,-885.22,0.00035066,6]
[385837157,1758058282436,-882.33,0.00035066,6]
[385837158,1758058282447,-548.46,0.00035067,6]
[385837159,1758058282456,-400.0,0.00035067,6]
[385837160,1758058282466,-1030.84,0.00035067,6]
[385837161,1758058282476,-400.0,0.00035067,6]
[385837162,1758058282487,-1390.25,0.00035067,6]
[385837163,1758058282498,-893.45,0.00035067,6]
[385837164,1758058282507,-846.78,0.00035067,6]
[385837165,1758058282517,-500.0,0.00035067,6]
[385837166,1758058282527,-400.0,0.00035067,6]
[385837167,1758058282538,-463.17,0.00035067,6]
[385837168,1758058282547,-400.0,0.00035067,120]
[385837169,1758058282557,-400.0,0.00035067,6]
[385837170,1758058282567,-400.0,0.00035067,6]
[385837171,1758058282577,-400.0,0.00035067,6]
[385837172,1758058282588,-405.15,0.00035067,6]
[385837173,1758058282599,-544.6,0.00035067,6]
[385837174,1758058282609,-579.99,0.00035067,6]
[385837175,1758058282619,-400.0,0.00035067,6]
[385837176,1758058282629,-1324.78,0.00035067,6]
[385837177,1758058282638,-400.0,0.00035067,6]
[385837178,1758058282648,-1741.21,0.00035067,6]
[385837179,1758058282658,-400.0,0.00035067,6]
[385837180,1758058282667,-400.0,0.00035067,6]
[385837181,1758058282677,-400.0,0.00035067,6]
[385837182,1758058282687,-709.37,0.00035067,6]
[385837183,1758058282697,-1543.15,0.00035067,6]
[385837184,1758058282707,-400.0,0.00035067,6]
[385837185,1758058282717,-559.75,0.00035067,6]
[385837186,1758058282727,-241.17736717,0.00035067,6]
[385837187,1758058282736,-400.0,0.00035067,6]
[385837188,1758058282746,-2637.68,0.00035067,6]
[385837189,1758058282755,-400.0,0.00035067,6]
[385837190,1758058282766,-635.22,0.00035067,6]
[385837191,1758058282781,-2060.24,0.00035067,6]
[385837192,1758058282791,-440.36,0.00035067,6]
[385837193,1758058282801,-400.0,0.00035067,6]
[385837194,1758058282811,-1367.84,0.00035067,6]
[385837195,1758058282821,-400.0,0.00035067,6]
[385837196,1758058282832,-1696.13,0.00035067,6]
[385837197,1758058282841,-254.30735869,0.00035067,6]
[385837198,1758058282851,-537.85,0.00035067,6]
[385837199,1758058282861,-428.76,0.00035067,6]
[385837200,1758058282870,-806.85,0.00035067,6]
[385837201,1758058282883,-549.91,0.00035067,6]
[385837202,1758058282893,-2321.08,0.00035067,6]
[385837203,1758058282902,-777.31,0.00035067,6]
[385837204,1758058282912,-400.0,0.00035067,6]
[385837205,1758058282922,-614.12,0.00035067,6]
[385837206,1758058282932,-400.0,0.00035067,6]
[385837207,1758058282942,-400.0,0.00035067,6]
[385837208,1758058282951,-400.0,0.00035067,6]
[385837209,1758058282961,-400.0,0.00035067,6]
[385837210,1758058282972,-472.73,0.00035067,6]
[385837211,1758058282982,-400.0,0.00035067,6]
[385837212,1758058282992,-400.0,0.00035067,6]
[385837213,1758058283002,-1041.29,0.00035067,6]
[385837214,1758058283011,-400.0,0.00035067,6]
[385837215,1758058283021,-643.91,0.00035067,6]
[385837216,1758058283031,-461.14,0.00035068,6]
[385837217,1758058283042,-400.0,0.00035068,6]
[385837218,1758058283051,-193.95784865,0.00035068,6]
[385837219,1758058283062,-530.21,0.00035068,6]
[385837220,1758058283073,-727.34,0.00035068,6]
[385837221,1758058283083,-531.6,0.00035068,6]
[385837222,1758058283093,-2312.57,0.00035068,6]
[385837223,1758058283103,-586.9,0.00035068,6]
[385837224,1758058283113,-627.93,0.00035068,6]
[385837225,1758058283123,-753.33,0.00035068,6]
[385837226,1758058283133,-400.0,0.00035068,6]
[385837227,1758058283144,-589.16,0.00035068,6]
[385837228,1758058283154,-609.41,0.00035068,6]
[385837229,1758058283165,-510.36,0.00035068,6]
[385837230,1758058283175,-684.2,0.00035068,6]
[385837231,1758058283185,-511.86,0.00035068,6]
[385837232,1758058283195,-2593.28,0.00035068,6]
[385837233,1758058283205,-764.41,0.00035068,6]
[385837234,1758058283215,-409.5,0.00035068,6]
[385837235,1758058283225,-594.69,0.00035068,6]
[385837236,1758058283235,-400.0,0.00035068,6]
[385837237,1758058283246,-563.64,0.00035068,6]
[385837238,1758058283256,-918.03,0.00035068,6]
[385837239,1758058283266,-3040.54,0.00035068,6]
[385837240,1758058283275,-955.33,0.00035068,6]
[385837241,1758058283285,-659.68,0.00035068,6]
[385837242,1758058283295,-285.11993176,0.00035068,6]
[385837243,1758058283306,-594.06,0.00035068,6]
[385837244,1758058283315,-585.22,0.00035068,6]
[385837245,1758058283325,-483.06,0.00035068,6]
[385837246,1758058283335,-200039.87320785,0.00035109,30]
[385837247,1758058283346,-439.88,0.00035129,6]
[385837248,1758058283356,-400.0,0.00035129,6]
[385837249,1758058283366,-595.63,0.00035129,6]
[385837250,1758058283380,-400.0,0.00035129,6]
[385837251,1758058283390,-461.84,0.00035129,6]
[385837252,1758058283400,-924.18,0.00035129,6]
[385837253,1758058283410,-546.56196881,0.00035129,6]
[385837254,1758058283421,-400.0,0.00035129,6]
[385837255,1758058283431,-400.0,0.00035129,6]